Cogmind - Beta 10.2 @@@ ROGUE MODE // 2021.05.16 @ 20:45:24 Player: mat Result: Destroyed by M Guard with Hellfire Missile Launcher Performance ------------- Evolutions (9) 4500 Regions Visited (23) 4600 Robots Destroyed (10) 50 Value Destroyed (157) 157 Prototype IDs (16) 320 Alien Tech Used (3) 600 Bonus (7026) 7026 TOTAL SCORE: 17253 Bonus ------- Follower Combat Kills 726 Met Zhirov 300 Found Hidden Lab 3000 Used Core Reset Matrix 3000 Cogmind --------- Core Integrity 0/1600 Matter 43/300 Energy 268/280 System Corruption 6% Temperature Cool (12) Movement Flying (29) Location -1/Command Parts ------- > --- POWER (3) -------- Light Quantum Reactor Light Quantum Reactor > --- PROPULSION (10) -- Xenon Bombardment Thruster Xenon Bombardment Thruster Xenon Bombardment Thruster Cooled Nuclear Pulse Thruster > --- UTILITY (10) ----- (None) > --- WEAPON (2) ------- (None) > --- INVENTORY (4) ---- Quantum Reactor Quantum Reactor Advanced Terrain Scan Processor Terrabomb Peak State ------------ > --- POWER ------------ Cold Fusion Reactor Heavy Antimatter Reactor > --- PROPULSION ------- Improved Antigrav System Field Propulsion Drive Field Propulsion Array Field Propulsion Array Field Propulsion Array > --- UTILITY ---------- Advanced Signal Interpreter Deep Network Scanner > --- WEAPON ----------- Guided Remote Datajack > --- INVENTORY -------- Antimatter Reactor [Rating: 92] Favorites ----------- Power Heavy Deuterium Engine Engine Heavy Deuterium Engine Power Core Micro Nuclear Core Reactor Cold Fusion Reactor Propulsion Field Propulsion Drive Leg Aluminum Leg Hover Unit Improved Antigrav System Flight Unit Field Propulsion Drive Utility Hacking Suite Storage Small Storage Unit Processor Advanced Signal Interpreter Hackware Hacking Suite Weapon Assault Rifle Energy Gun Small Laser Energy Cannon Long-range Proton Cannon Ballistic Gun Assault Rifle Special Weapon Guided Remote Datajack Build | -11 -10 -9 -8 -7 -7 -7 -6 -5 -5 -5 -5 -5 -5 -4 -4 -3 -3 -3 -2 -2 -2 -1 -1 ------- Run | Scr Mat Mat Mat Fac Was Fac Fac Fac Was Fac Upp Upp Zhi Pro Fac Res Arm Lab Res Qua Sec Acc Com Slots Evolved 18 | . . 2 2 2 . . 2 2 . . . . . . 2 2 . . 2 . . 2 . Power 2 | . . . 1 . . . . . . . . . . . . 1 . . . . . . . Propulsion 8 | . . . 1 . . . . 1 . . . . . . 1 1 . . 2 . . 2 . Utility 8 | . . 2 . 2 . . 2 1 . . . . . . 1 . . . . . . . . Weapon . | . . . . . . . . . . . . . . . . . . . . . . . . Parts Attached 68 | 6 1 6 4 3 . 4 4 2 . 7 . . 5 1 6 . 1 1 3 1 2 1 10 Power 17 | 1 . 1 2 . . 2 1 1 . 2 . . 1 . 2 . . . . . 1 . 3 Engine 6 | 1 . 1 2 . . 1 . . . 1 . . . . . . . . . . . . . Core 5 | . . . . . . 1 1 1 . 1 . . 1 . . . . . . . . . . Reactor 6 | . . . . . . . . . . . . . . . 2 . . . . . 1 . 3 Propulsion 31 | 2 . 2 2 . . 2 1 . . 5 . . 2 1 4 . 1 . 1 . 1 . 7 Treads . | . . . . . . . . . . . . . . . . . . . . . . . . Leg 2 | 2 . . . . . . . . . . . . . . . . . . . . . . . Wheel . | . . . . . . . . . . . . . . . . . . . . . . . . Hover 1 | . . . . . . . . . . . . . . . . . 1 . . . . . . Flight 28 | . . 2 2 . . 2 1 . . 5 . . 2 1 4 . . . 1 . 1 . 7 Utility 16 | 1 1 3 . 3 . . 2 1 . . . . 2 . . . . 1 1 1 . . . Device . | . . . . . . . . . . . . . . . . . . . . . . . . Storage 1 | 1 . . . . . . . . . . . . . . . . . . . . . . . Processor 6 | . 1 . . 2 . . 1 1 . . . . 1 . . . . . . . . . . Hackware 9 | . . 3 . 1 . . 1 . . . . . 1 . . . . 1 1 1 . . . Protection . | . . . . . . . . . . . . . . . . . . . . . . . . Artifact . | . . . . . . . . . . . . . . . . . . . . . . . . Weapon 4 | 2 . . . . . . . . . . . . . . . . . . 1 . . 1 . Energy Gun 1 | 1 . . . . . . . . . . . . . . . . . . . . . . . Energy Cannon 1 | . . . . . . . . . . . . . . . . . . . . . . 1 . Ballistic Gun 1 | 1 . . . . . . . . . . . . . . . . . . . . . . . Ballistic Cannon . | . . . . . . . . . . . . . . . . . . . . . . . . Launcher . | . . . . . . . . . . . . . . . . . . . . . . . . Special Weapon 1 | . . . . . . . . . . . . . . . . . . . 1 . . . . Impact Weapon . | . . . . . . . . . . . . . . . . . . . . . . . . Slashing Weapon . | . . . . . . . . . . . . . . . . . . . . . . . . Piercing Weapon . | . . . . . . . . . . . . . . . . . . . . . . . . Special Melee Weapon . | . . . . . . . . . . . . . . . . . . . . . . . . Unidentified Prototypes 10 | . . . . . . 1 . . . 1 . . 1 . 2 . 1 2 1 . . . 1 Parts Lost 45 | . . 4 1 . . 4 1 2 1 5 . . . 10 1 . . . . 4 7 1 4 Power 9 | . . 1 . . . 1 . 2 . 1 . . . 2 . . . . . . 2 . . Propulsion 23 | . . 2 1 . . 3 . . . 4 . . . 4 . . . . . 4 2 . 3 Utility 11 | . . . . . . . 1 . 1 . . . . 4 1 . . . . . 3 . 1 Weapon 2 | . . 1 . . . . . . . . . . . . . . . . . . . 1 . Highest Loss Streak 10 | . . 4 1 . . 4 1 2 1 5 . . . 10 1 . . . . 4 3 1 3 Average Slot Usage (%) 48 | . 94 69 70 84 84 74 68 60 46 60 47 47 59 54 18 28 28 33 42 34 23 4 23 Engine 4 | . 14 10 9 15 15 8 6 3 . 4 5 5 5 3 . . . . . . . . . Reactor 1 | . . . . . . . . . . . . . . . 3 9 9 9 8 6 2 . 5 Leg 3 | . 28 15 . . . . . . . . . . . . . . . . . . . . . Flight 11 | . . 6 25 23 23 16 13 11 7 21 11 11 15 16 8 14 14 14 17 10 3 . 16 Storage 1 | . 14 8 . . . . . . . . . . . . . . . . . . . . . Processor 8 | . 9 11 9 15 15 15 13 15 15 11 11 11 14 13 5 4 4 4 4 4 4 4 . Hackware 11 | . . 1 27 30 30 30 29 23 21 17 17 17 19 17 . . . . 7 11 12 . . Energy Gun 1 | . 14 7 . . . . . . . . . . . . . . . . . . . . . Ballistic Gun 1 | . 14 8 . . . . . . . . . . . . . . . . . . . . . Naked Turns 13 | . . . . . . . . . . . . . . . . . . . . . . . 13 Heaviest Build 35 | 10 10 10 10 10 10 11 11 11 7 18 11 11 16 16 30 30 30 30 30 30 16 . 35 Greatest Support 78 | 20 20 20 12 12 12 14 12 12 12 36 18 18 36 36 55 55 55 55 78 78 50 3 44 Greatest Overweight (x) 3 | 3 . 1 . . . . . . . . . . . 1 . . . . . . . . 2 Average Overweight (x) . | . . . . . . . . . . . . . . . . . . . . . . . . Largest Inventory Capacity 6 | 6 6 6 4 4 4 4 4 4 4 4 4 4 4 4 4 4 4 4 4 4 4 4 4 Average Capacity 4 | 5 6 5 4 4 4 4 4 4 4 4 4 4 4 4 4 4 4 4 4 4 4 4 4 Most Carried 6 | 4 6 6 4 4 4 4 3 3 4 4 3 4 4 4 4 3 4 4 4 4 4 4 4 Average Carried 3 | 1 2 5 2 3 4 3 1 1 2 3 2 3 3 3 2 3 3 3 3 4 3 3 2 Final Capacity 6 | 6 6 4 4 4 4 4 4 4 4 4 4 4 4 4 4 4 4 4 4 4 4 4 4 Final Carried 6 | 2 6 4 4 4 4 3 2 2 4 2 3 4 4 3 3 3 3 4 4 4 4 2 4 Class Distribution -------------------- 41% | Hacker-Mutant 32% | Mutant 19% | Hacker-Sprinter 5% | Scavenger-Sprinter Dominant Class ---------------- Mutant | -10/Materials Mutant | -9/Materials Hacker-Mutant | -8/Materials Hacker-Mutant | -7/Factory Hacker-Mutant | -7/Waste Hacker-Sprinter | -7/Factory Hacker-Mutant | -6/Factory Hacker-Mutant | -5/Factory Hacker-Mutant | -5/Waste Hacker-Sprinter | -5/Factory Hacker-Mutant | -5/Upper Caves Hacker-Mutant | -5/Upper Caves Hacker-Mutant | -5/Zhirov Hacker-Mutant | -4/Proximity Caves Mutant | -4/Factory Mutant | -3/Research Mutant | -3/Armory Mutant | -3/Lab Hacker-Sprinter | -2/Research Hacker-Mutant | -2/Quarantine Hacker-Mutant | -2/Section 7 Mutant | -1/Access Scavenger-Sprinter | -1/Command Resources | -11 -10 -9 -8 -7 -7 -7 -6 -5 -5 -5 -5 -5 -5 -4 -4 -3 -3 -3 -2 -2 -2 -1 -1 ----------- Run | Scr Mat Mat Mat Fac Was Fac Fac Fac Was Fac Upp Upp Zhi Pro Fac Res Arm Lab Res Qua Sec Acc Com Matter Collected 587 | 190 114 32 . . . . . . . . 11 46 . 65 . . . . . . . . 129 Remotely . | . . . . . . . . . . . . . . . . . . . . . . . . Salvage Created 204 | . 79 125 . . . . . . . . . . . . . . . . . . . . . Parts 25 | . 10 15 . . . . . . . . . . . . . . . . . . . . . Haulers Intercepted . | . . . . . . . . . . . . . . . . . . . . . . . . Recyclers Shooed . | . . . . . . . . . . . . . . . . . . . . . . . . Parts Field Recycled . | . . . . . . . . . . . . . . . . . . . . . . . . Retrieved Matter . | . . . . . . . . . . . . . . . . . . . . . . . . Parts Self-Destructed . | . . . . . . . . . . . . . . . . . . . . . . . . Prevented . | . . . . . . . . . . . . . . . . . . . . . . . . Kills | -11 -10 -9 -8 -7 -7 -7 -6 -5 -5 -5 -5 -5 -5 -4 -4 -3 -3 -3 -2 -2 -2 -1 -1 ------- Run | Scr Mat Mat Mat Fac Was Fac Fac Fac Was Fac Upp Upp Zhi Pro Fac Res Arm Lab Res Qua Sec Acc Com Combat Hostiles Destroyed 8 | . 3 5 . . . . . . . . . . . . . . . . . . . . . Guns 8 | . 3 5 . . . . . . . . . . . . . . . . . . . . . Classes Destroyed 3 | . 2 1 . . . . . . . . . . . . . . . . . . . . . Watcher 2 | . 2 . . . . . . . . . . . . . . . . . . . . . . Swarmer 7 | . 3 4 . . . . . . . . . . . . . . . . . . . . . Sentry 1 | . . 1 . . . . . . . . . . . . . . . . . . . . . Best Kill Streak 4 | . 4 4 . . . . . . . . . . . . . . . . . . . . . Combat Bots Only 4 | . 3 4 . . . . . . . . . . . . . . . . . . . . . Max Kills in Single Turn 1 | . 1 1 . . . . . . . . . . . . . . . . . . . . . Gunslinging . | . . . . . . . . . . . . . . . . . . . . . . . . Exploded . | . . . . . . . . . . . . . . . . . . . . . . . . Melee . | . . . . . . . . . . . . . . . . . . . . . . . . Uniques/NPCs Destroyed . | . . . . . . . . . . . . . . . . . . . . . . . . Combat | -11 -10 -9 -8 -7 -7 -7 -6 -5 -5 -5 -5 -5 -5 -4 -4 -3 -3 -3 -2 -2 -2 -1 -1 -------- Run | Scr Mat Mat Mat Fac Was Fac Fac Fac Was Fac Upp Upp Zhi Pro Fac Res Arm Lab Res Qua Sec Acc Com Damage Taken 6718 | . 94 478 51 . . 391 119 69 31 415 . . . 826 520 59 . 53 71 576 957 1464 544 Core 3968 | . 17 175 19 . . 214 57 17 31 134 . . . 390 458 28 . 26 24 188 572 1364 254 Absorbed by Shields 9 | . . . . . . 9 . . . . . . . . . . . . . . . . . Core Remaining (%) 74 | 100 93 56 96 . . 69 93 . . . . . . 42 60 . . 89 . . 45 . . Volleys Fired 31 | . 16 14 . . . . . . . . . . . . . . . . . . . 1 . Largest 2 | . 2 2 . . . . . . . . . . . . . . . . . . . 1 . Hottest 81 | . 60 60 . . . . . . . . . . . . . . . . . . . 81 . Shots Fired 55 | . 30 24 . . . . . . . . . . . . . . . . . . . 1 . Gun 54 | . 30 24 . . . . . . . . . . . . . . . . . . . . . Cannon 1 | . . . . . . . . . . . . . . . . . . . . . . 1 . Launcher . | . . . . . . . . . . . . . . . . . . . . . . . . Special . | . . . . . . . . . . . . . . . . . . . . . . . . Kinetic 30 | . 16 14 . . . . . . . . . . . . . . . . . . . . . Thermal 24 | . 14 10 . . . . . . . . . . . . . . . . . . . . . Explosive . | . . . . . . . . . . . . . . . . . . . . . . . . Electromagnetic 1 | . . . . . . . . . . . . . . . . . . . . . . 1 . Robot Hit Streak 4 | . 4 4 . . . . . . . . . . . . . . . . . . . 2 . Robot Miss Streak 7 | . 7 2 . . . . . . . . . . . . . . . . . . . . . Penetration Max . | . . . . . . . . . . . . . . . . . . . . . . . . Secondary Targets 2 | . . 2 . . . . . . . . . . . . . . . . . . . . . Max Gunslinging Chain 1 | . . 1 . . . . . . . . . . . . . . . . . . . . . Shots Hit Robots 25 | . 10 14 . . . . . . . . . . . . . . . . . . . 1 . Core Hits 14 | . 5 7 . . . 1 . . . . . . . . . 1 . . . . . . . Critical Hits . | . . . . . . . . . . . . . . . . . . . . . . . . Critical Kills . | . . . . . . . . . . . . . . . . . . . . . . . . Critical Parts Destroyed . | . . . . . . . . . . . . . . . . . . . . . . . . Melee Attacks . | . . . . . . . . . . . . . . . . . . . . . . . . Impact . | . . . . . . . . . . . . . . . . . . . . . . . . Slashing . | . . . . . . . . . . . . . . . . . . . . . . . . Piercing . | . . . . . . . . . . . . . . . . . . . . . . . . Sneak Attacks . | . . . . . . . . . . . . . . . . . . . . . . . . Combat Hostiles . | . . . . . . . . . . . . . . . . . . . . . . . . Follow-up Attacks . | . . . . . . . . . . . . . . . . . . . . . . . . Damage Inflicted 322 | . 127 149 . . . 1 . . . . . . . . . 5 . . . . 4 36 . Guns 276 | . 127 149 . . . . . . . . . . . . . . . . . . . . . Cannons 36 | . . . . . . . . . . . . . . . . . . . . . . 36 . Explosions . | . . . . . . . . . . . . . . . . . . . . . . . . Melee . | . . . . . . . . . . . . . . . . . . . . . . . . Ramming 10 | . . . . . . 1 . . . . . . . . . 5 . . . . 4 . . Kinetic 164 | . 81 83 . . . . . . . . . . . . . . . . . . . . . Thermal 112 | . 46 66 . . . . . . . . . . . . . . . . . . . . . Explosive . | . . . . . . . . . . . . . . . . . . . . . . . . Electromagnetic 36 | . . . . . . . . . . . . . . . . . . . . . . 36 . Impact . | . . . . . . . . . . . . . . . . . . . . . . . . Slashing . | . . . . . . . . . . . . . . . . . . . . . . . . Piercing . | . . . . . . . . . . . . . . . . . . . . . . . . Highest Corruption 7 | . 2 . . . . . . . 7 7 7 7 7 7 2 . . 1 1 3 5 6 6 Average Corruption 5 | . 2 . . . . . . . 7 7 7 7 7 7 2 . . 1 1 2 4 5 6 Corruption Purged . | . . . . . . . . . . . . . . . . . . . . . . . . Effects 32 | . 1 . . . . . . . 1 5 2 5 1 2 . . . . . 1 5 3 6 Message Errors 9 | . . . . . . . . . . 2 1 . . 1 . . . . . 1 . 3 1 Matter Fused 10 | . . . . . . . . . . 2 . 2 1 1 . . . . . . 2 . 2 Heat Flow Errors 1 | . . . . . . . . . . . . 1 . . . . . . . . . . . Energy Discharges 3 | . . . . . . . . . . . 1 . . . . . . . . . 1 . 1 Parts Rejected 1 | . . . . . . . . . 1 . . . . . . . . . . . . . . Data Loss (minor) 7 | . 1 . . . . . . . . . . 2 . . . . . . . . 2 . 2 Data Loss (major) 1 | . . . . . . . . . . 1 . . . . . . . . . . . . . Overload Shots . | . . . . . . . . . . . . . . . . . . . . . . . . Overflow Damage . | . . . . . . . . . . . . . . . . . . . . . . . . Projectiles . | . . . . . . . . . . . . . . . . . . . . . . . . Explosions . | . . . . . . . . . . . . . . . . . . . . . . . . Melee . | . . . . . . . . . . . . . . . . . . . . . . . . Knockbacks . | . . . . . . . . . . . . . . . . . . . . . . . . Impact . | . . . . . . . . . . . . . . . . . . . . . . . . Kinetic . | . . . . . . . . . . . . . . . . . . . . . . . . Secondary . | . . . . . . . . . . . . . . . . . . . . . . . . Self-Inflicted Damage 4 | . . . . . . . . . . . . . . . . 2 . . . . 2 . . Shots . | . . . . . . . . . . . . . . . . . . . . . . . . Rammed 3 | . . . . . . 1 . . . . . . . . . 1 . . . . 1 . . Targets Rammed 3 | . . . . . . 1 . . . . . . . . . 1 . . . . 1 . . Kicked . | . . . . . . . . . . . . . . . . . . . . . . . . Crushed . | . . . . . . . . . . . . . . . . . . . . . . . . Highest Temperature 201 | . . 6 . . . 2 4 . . 1 . 201 . . . . . . . . . . 32 Average Temperature 23 | . . 4 . . . 2 2 . . 1 . 107 . . . . . . . . . . 14 Received Heat Transfer 519 | . . 69 18 . . 105 54 . . 27 . . . 48 54 9 . . . 27 108 . . Siege Activations . | . . . . . . . . . . . . . . . . . . . . . . . . Robots Corrupted . | . . . . . . . . . . . . . . . . . . . . . . . . Combat Hostiles . | . . . . . . . . . . . . . . . . . . . . . . . . Parts Fried . | . . . . . . . . . . . . . . . . . . . . . . . . Impact Corruptions . | . . . . . . . . . . . . . . . . . . . . . . . . Robots Melted . | . . . . . . . . . . . . . . . . . . . . . . . . Combat Hostiles . | . . . . . . . . . . . . . . . . . . . . . . . . Parts Melted . | . . . . . . . . . . . . . . . . . . . . . . . . Heat Transferred 250 | . 100 150 . . . . . . . . . . . . . . . . . . . . . Parts Sabotaged . | . . . . . . . . . . . . . . . . . . . . . . . . Parts Stolen . | . . . . . . . . . . . . . . . . . . . . . . . . Parts Stripped . | . . . . . . . . . . . . . . . . . . . . . . . . Power Chain Reactions . | . . . . . . . . . . . . . . . . . . . . . . . . Missiles Intercepted . | . . . . . . . . . . . . . . . . . . . . . . . . Alert | -11 -10 -9 -8 -7 -7 -7 -6 -5 -5 -5 -5 -5 -5 -4 -4 -3 -3 -3 -2 -2 -2 -1 -1 ------- Run | Scr Mat Mat Mat Fac Was Fac Fac Fac Was Fac Upp Upp Zhi Pro Fac Res Arm Lab Res Qua Sec Acc Com Peak Influence 659 | . 129 253 207 47 31 136 74 32 41 126 . . . . 351 228 164 . 141 290 422 527 659 Initial 304 | . . 53 106 32 16 7 44 7 11 21 . . . . 166 183 119 . . 78 162 235 304 Average 168 | . 33 127 133 35 18 42 39 9 23 43 . . . . 259 198 136 . 55 194 290 345 497 Maximum Alert Level 2 | . . 1 1 . . . . . . . . . . . 1 1 . . . 1 2 2 2 Low Security (%) 64 | 100 100 86 94 100 100 100 100 100 100 100 . . . . 18 75 100 . 100 33 19 . . Level 1 24 | . . 13 5 . . . . . . . . . . . 81 25 . . . 66 76 64 18 Level 2 10 | . . . . . . . . . . . . . . . . . . . . . 3 35 81 Level 3 . | . . . . . . . . . . . . . . . . . . . . . . . . Level 4 . | . . . . . . . . . . . . . . . . . . . . . . . . Level 5 . | . . . . . . . . . . . . . . . . . . . . . . . . High Security . | . . . . . . . . . . . . . . . . . . . . . . . . Max Security . | . . . . . . . . . . . . . . . . . . . . . . . . Squads Dispatched 15 | . . 2 3 . . 2 . . . . . . . 1 . . . . . 2 2 1 2 Investigation 5 | . . . 1 . . 1 . . . . . . . . . . . . . 1 . 1 1 Extermination . | . . . . . . . . . . . . . . . . . . . . . . . . Reinforcement 9 | . . 2 2 . . 1 . . . . . . . . . . . . . 1 2 . 1 Assault 1 | . . . . . . . . . . . . . . 1 . . . . . . . . . Garrison . | . . . . . . . . . . . . . . . . . . . . . . . . Intercept . | . . . . . . . . . . . . . . . . . . . . . . . . Construction Impeded . | . . . . . . . . . . . . . . . . . . . . . . . . Haulers Reinforced . | . . . . . . . . . . . . . . . . . . . . . . . . Stealth | -11 -10 -9 -8 -7 -7 -7 -6 -5 -5 -5 -5 -5 -5 -4 -4 -3 -3 -3 -2 -2 -2 -1 -1 --------- Run | Scr Mat Mat Mat Fac Was Fac Fac Fac Was Fac Upp Upp Zhi Pro Fac Res Arm Lab Res Qua Sec Acc Com Distress Signals 12 | . 1 2 . . . 1 . 1 . . . . . . 1 . . . . 2 2 1 1 Communications Jammed . | . . . . . . . . . . . . . . . . . . . . . . . . Distress Signals . | . . . . . . . . . . . . . . . . . . . . . . . . Times Spotted 208 | . 7 20 10 . 6 18 3 6 5 6 1 . . 31 14 1 . 1 6 15 22 13 23 Peak Tracking Total 16 | . 4 13 6 . 6 11 3 6 5 5 1 . . 16 9 1 . 1 6 10 11 7 8 Tactical Retreats 29 | . 1 1 2 . . 3 . 1 . 1 . . . 5 4 . . . . 3 6 1 1 Traps | -11 -10 -9 -8 -7 -7 -7 -6 -5 -5 -5 -5 -5 -5 -4 -4 -3 -3 -3 -2 -2 -2 -1 -1 ------- Run | Scr Mat Mat Mat Fac Was Fac Fac Fac Was Fac Upp Upp Zhi Pro Fac Res Arm Lab Res Qua Sec Acc Com Traps Triggered 9 | . 1 . . 1 . 1 2 1 . . . . . . 1 . . . . . 1 1 . Indirectly . | . . . . . . . . . . . . . . . . . . . . . . . . Trap Hack Attempts . | . . . . . . . . . . . . . . . . . . . . . . . . Triggered . | . . . . . . . . . . . . . . . . . . . . . . . . Disarmed . | . . . . . . . . . . . . . . . . . . . . . . . . Reprogrammed . | . . . . . . . . . . . . . . . . . . . . . . . . Reused . | . . . . . . . . . . . . . . . . . . . . . . . . Traps Extracted . | . . . . . . . . . . . . . . . . . . . . . . . . Installed . | . . . . . . . . . . . . . . . . . . . . . . . . Triggered . | . . . . . . . . . . . . . . . . . . . . . . . . Machines | -11 -10 -9 -8 -7 -7 -7 -6 -5 -5 -5 -5 -5 -5 -4 -4 -3 -3 -3 -2 -2 -2 -1 -1 ---------- Run | Scr Mat Mat Mat Fac Was Fac Fac Fac Was Fac Upp Upp Zhi Pro Fac Res Arm Lab Res Qua Sec Acc Com Machines Disabled 1 | . . 1 . . . . . . . . . . . . . . . . . . . . . Max in Single Turn 1 | . . 1 . . . . . . . . . . . . . . . . . . . . . Machines Sabotaged . | . . . . . . . . . . . . . . . . . . . . . . . . Garrisons Compromised . | . . . . . . . . . . . . . . . . . . . . . . . . Overloaded Fab Kills . | . . . . . . . . . . . . . . . . . . . . . . . . Fab Network Shutdowns . | . . . . . . . . . . . . . . . . . . . . . . . . Hacking | -11 -10 -9 -8 -7 -7 -7 -6 -5 -5 -5 -5 -5 -5 -4 -4 -3 -3 -3 -2 -2 -2 -1 -1 --------- Run | Scr Mat Mat Mat Fac Was Fac Fac Fac Was Fac Upp Upp Zhi Pro Fac Res Arm Lab Res Qua Sec Acc Com Machines Accessed 26 | . . . 3 . . 2 2 . . 1 . . 4 . 1 . . 2 2 1 4 2 2 Terminals 20 | . . . 3 . . 2 2 . . 1 . . . . 1 . . . 2 1 4 2 2 Fabricators . | . . . . . . . . . . . . . . . . . . . . . . . . Repair Stations . | . . . . . . . . . . . . . . . . . . . . . . . . Recycling Units . | . . . . . . . . . . . . . . . . . . . . . . . . Scanalyzers . | . . . . . . . . . . . . . . . . . . . . . . . . Garrison Access . | . . . . . . . . . . . . . . . . . . . . . . . . Total Hacks 74 | . . . 6 . . 5 2 . . 2 . . 17 . 1 . . 19 3 4 7 5 3 Successful 57 | . . . 4 . . 3 2 . . 1 . . 17 . 1 . . 19 2 2 4 1 1 Failed 17 | . . . 2 . . 2 . . . 1 . . . . . . . . 1 2 3 4 2 Catastrophic 2 | . . . . . . . . . . . . . . . . . . . . . . 1 1 Database Lockouts . | . . . . . . . . . . . . . . . . . . . . . . . . Manual 17 | . . . 4 . . 2 2 . . 2 . . . . . . . 1 3 . . . 3 Terminals 38 | . . . 6 . . 5 2 . . 2 . . . . 1 . . . 3 4 7 5 3 Fabricators . | . . . . . . . . . . . . . . . . . . . . . . . . Repair Stations . | . . . . . . . . . . . . . . . . . . . . . . . . Recycling Units . | . . . . . . . . . . . . . . . . . . . . . . . . Scanalyzers . | . . . . . . . . . . . . . . . . . . . . . . . . Garrison Access . | . . . . . . . . . . . . . . . . . . . . . . . . Terminal Hacks 54 | . . . 4 . . 3 2 . . . . . 17 . 1 . . 19 1 2 4 1 . Record 27 | . . . . . . 1 . . . . . . 5 . 1 . . 19 . 1 . . . Part Schematic 4 | . . . . . . . . . . . . . 4 . . . . . . . . . . Robot Analysis 4 | . . . . . . . . . . . . . 4 . . . . . . . . . . Prototype ID Bank 4 | . . . . . . . . . . . . . 4 . . . . . . . . . . Open Door 4 | . . . . . . . . . . . . . . . . . . . . . 3 1 . Level Access Points 4 | . . . 1 . . 1 1 . . . . . . . . . . . . 1 . . . Branch Access Points 1 | . . . . . . . . . . . . . . . . . . . 1 . . . . Alert Level 2 | . . . 2 . . . . . . . . . . . . . . . . . . . . Unreport Threat 3 | . . . 1 . . 1 1 . . . . . . . . . . . . . . . . Activate Exoskeleton 1 | . . . . . . . . . . . . . . . . . . . . . 1 . . Fabricator Hacks . | . . . . . . . . . . . . . . . . . . . . . . . . Repair Station Hacks . | . . . . . . . . . . . . . . . . . . . . . . . . Recycling Unit Hacks . | . . . . . . . . . . . . . . . . . . . . . . . . Scanalyzer . | . . . . . . . . . . . . . . . . . . . . . . . . Garrison Access Hacks . | . . . . . . . . . . . . . . . . . . . . . . . . Unauthorized Hacks 3 | . . . . . . . . . . 1 . . . . . . . . 1 . . . 1 Terminals 3 | . . . . . . . . . . 1 . . . . . . . . 1 . . . 1 Assimilate 2 | . . . . . . . . . . . . . . . . . . . 1 . . . 1 Botnet 1 | . . . . . . . . . . 1 . . . . . . . . . . . . . Fabricators . | . . . . . . . . . . . . . . . . . . . . . . . . Repair Stations . | . . . . . . . . . . . . . . . . . . . . . . . . Recycling Units . | . . . . . . . . . . . . . . . . . . . . . . . . Scanalyzers . | . . . . . . . . . . . . . . . . . . . . . . . . Garrison Access . | . . . . . . . . . . . . . . . . . . . . . . . . Data Cores Recovered . | . . . . . . . . . . . . . . . . . . . . . . . . Used . | . . . . . . . . . . . . . . . . . . . . . . . . Hacking Detections 9 | . . . 1 . . 1 . . . 1 . . . . . . . . 1 1 . 2 2 Full Trace Events 5 | . . . 1 . . 1 . . . . . . . . . . . . . 1 . 1 1 Feedback Events . | . . . . . . . . . . . . . . . . . . . . . . . . Feedback Blocked . | . . . . . . . . . . . . . . . . . . . . . . . . Robot Schematics Acquired . | . . . . . . . . . . . . . . . . . . . . . . . . Robots Built . | . . . . . . . . . . . . . . . . . . . . . . . . Matter . | . . . . . . . . . . . . . . . . . . . . . . . . Time . | . . . . . . . . . . . . . . . . . . . . . . . . Total Robot Build Rating . | . . . . . . . . . . . . . . . . . . . . . . . . Part Schematics Acquired 4 | . . . . . . . . . . . . . 4 . . . . . . . . . . Parts Built . | . . . . . . . . . . . . . . . . . . . . . . . . Matter . | . . . . . . . . . . . . . . . . . . . . . . . . Time . | . . . . . . . . . . . . . . . . . . . . . . . . Total Part Build Rating . | . . . . . . . . . . . . . . . . . . . . . . . . Parts Repaired . | . . . . . . . . . . . . . . . . . . . . . . . . Time . | . . . . . . . . . . . . . . . . . . . . . . . . Parts Recycled . | . . . . . . . . . . . . . . . . . . . . . . . . Recycled Matter . | . . . . . . . . . . . . . . . . . . . . . . . . Retrieved Matter . | . . . . . . . . . . . . . . . . . . . . . . . . Retrieved Components . | . . . . . . . . . . . . . . . . . . . . . . . . Parts Scanalyzed . | . . . . . . . . . . . . . . . . . . . . . . . . Part Schematics Acquired . | . . . . . . . . . . . . . . . . . . . . . . . . Parts Damaged . | . . . . . . . . . . . . . . . . . . . . . . . . Bothacking | -11 -10 -9 -8 -7 -7 -7 -6 -5 -5 -5 -5 -5 -5 -4 -4 -3 -3 -3 -2 -2 -2 -1 -1 ------------ Run | Scr Mat Mat Mat Fac Was Fac Fac Fac Was Fac Upp Upp Zhi Pro Fac Res Arm Lab Res Qua Sec Acc Com Used RIF Installer . | . . . . . . . . . . . . . . . . . . . . . . . . Robots Hacked . | . . . . . . . . . . . . . . . . . . . . . . . . Non-combat . | . . . . . . . . . . . . . . . . . . . . . . . . Combat . | . . . . . . . . . . . . . . . . . . . . . . . . Robot Hacks Applied . | . . . . . . . . . . . . . . . . . . . . . . . . Relay Couplers Released . | . . . . . . . . . . . . . . . . . . . . . . . . Robots Rewired . | . . . . . . . . . . . . . . . . . . . . . . . . Allies Hacked . | . . . . . . . . . . . . . . . . . . . . . . . . Hacks Repelled . | . . . . . . . . . . . . . . . . . . . . . . . . Allies | -11 -10 -9 -8 -7 -7 -7 -6 -5 -5 -5 -5 -5 -5 -4 -4 -3 -3 -3 -2 -2 -2 -1 -1 -------- Run | Scr Mat Mat Mat Fac Was Fac Fac Fac Was Fac Upp Upp Zhi Pro Fac Res Arm Lab Res Qua Sec Acc Com Total Allies 38 | . . . . . 1 . . . . . . . . . . . . . . . . 22 15 Largest Group 19 | . . . . . 1 . . . . . . . . . . . . . . . . 19 16 Highest-Rated Group 261 | . . . . . 31 . . . . . . . . . . . . . . . . 261 219 Highest-Rated Ally 44 | . . . . . 31 . . . . . . . . . . . . . . . . 15 44 Total Orders . | . . . . . . . . . . . . . . . . . . . . . . . . Ally Attacks 216 | . . . . . 10 . . . . . . . . . . . . . . . . 83 123 Total Damage 3995 | . . . . . 191 . . . . . . . . . . . . . . . . 1604 2200 Kills 24 | . . . . . . . . . . . . . . . . . . . . . . 8 16 Allies Corrupted . | . . . . . . . . . . . . . . . . . . . . . . . . Allies Melted . | . . . . . . . . . . . . . . . . . . . . . . . . Intel | -11 -10 -9 -8 -7 -7 -7 -6 -5 -5 -5 -5 -5 -5 -4 -4 -3 -3 -3 -2 -2 -2 -1 -1 ------- Run | Scr Mat Mat Mat Fac Was Fac Fac Fac Was Fac Upp Upp Zhi Pro Fac Res Arm Lab Res Qua Sec Acc Com Robot Analysis Total 4 | . . . . . . . . . . . . . 4 . . . . . . . . . . Derelict Logs Recovered 2 | . . . . . . . . . . . 1 . . 1 . . . . . . . . . Drone Launches . | . . . . . . . . . . . . . . . . . . . . . . . . Drone Recoveries . | . . . . . . . . . . . . . . . . . . . . . . . . Exploration | -11 -10 -9 -8 -7 -7 -7 -6 -5 -5 -5 -5 -5 -5 -4 -4 -3 -3 -3 -2 -2 -2 -1 -1 ------------- Run | Scr Mat Mat Mat Fac Was Fac Fac Fac Was Fac Upp Upp Zhi Pro Fac Res Arm Lab Res Qua Sec Acc Com Turns Passed 2735 | 54 197 179 107 20 41 182 100 51 30 155 157 117 53 176 131 16 78 77 118 108 218 161 209 Spaces Moved 6332 | 42 121 177 279 43 109 475 273 138 81 441 422 312 128 563 341 46 185 204 336 300 500 267 549 Core 555 | 24 . 1 . . . . . . . . . . . 3 12 . . . . . 161 267 87 Treads . | . . . . . . . . . . . . . . . . . . . . . . . . Legs 216 | 18 121 77 . . . . . . . . . . . . . . . . . . . . . Wheels . | . . . . . . . . . . . . . . . . . . . . . . . . Hover . | . . . . . . . . . . . . . . . . . . . . . . . . Flight 5561 | . . 99 279 43 109 475 273 138 81 441 422 312 128 560 329 46 185 204 336 300 339 . 462 Fastest Speed 24 | 50 120 37 34 34 34 30 34 34 34 29 37 37 28 28 32 34 34 34 31 31 37 50 24 Average Speed 37 | 97 120 73 34 34 34 32 34 34 34 30 37 37 33 30 35 34 34 34 31 35 42 50 29 Slowest Speed 200 | 200 120 120 37 34 34 37 40 34 35 37 37 37 37 105 50 34 34 34 31 40 50 50 200 Overloaded Moves 193 | . . . . . . 193 . . . . . . . . . . . . . . . . . Propulsion Burnouts . | . . . . . . . . . . . . . . . . . . . . . . . . Robots Hopped 68 | . . 6 11 . . 11 3 2 . 6 . . . 5 2 1 . . 6 6 2 . 7 Cave-ins Triggered . | . . . . . . . . . . . . . . . . . . . . . . . . Teleports 1 | . . . . . . . . . . . . . . . . . 1 . . . . . . Exploration Rate (%) 33 | 4 28 36 32 3 76 21 10 7 74 13 65 50 55 72 13 2 12 99 8 49 46 11 19 Regions Visited 23 Branch Regions 9 Pre-discovered Areas 4 | . . . . . . . . . . . . . 3 1 . . . . . . . . . Known Exits Taken 16 | . . . 1 . . 1 1 . . 1 1 1 1 1 1 1 1 1 1 1 1 1 . Unknown Exits Taken 3 | 1 1 1 . . . . . . . . . . . . . . . . . . . . . Scrap Searched 7 | . . . . . . . . . . . . 4 . 3 . . . . . . . . . Spaces Dug . | . . . . . . . . . . . . . . . . . . . . . . . . Terrain Destroyed . | . . . . . . . . . . . . . . . . . . . . . . . . Melee . | . . . . . . . . . . . . . . . . . . . . . . . . Projectile . | . . . . . . . . . . . . . . . . . . . . . . . . AOE . | . . . . . . . . . . . . . . . . . . . . . . . . Terrain Rammed . | . . . . . . . . . . . . . . . . . . . . . . . . Walls Destroyed . | . . . . . . . . . . . . . . . . . . . . . . . . Machines Disabled . | . . . . . . . . . . . . . . . . . . . . . . . . Actions | -11 -10 -9 -8 -7 -7 -7 -6 -5 -5 -5 -5 -5 -5 -4 -4 -3 -3 -3 -2 -2 -2 -1 -1 --------- Run | Scr Mat Mat Mat Fac Was Fac Fac Fac Was Fac Upp Upp Zhi Pro Fac Res Arm Lab Res Qua Sec Acc Com Total 6524 | 55 143 195 277 48 112 489 276 140 82 453 422 312 136 559 349 45 198 210 343 295 503 293 589 Wait 68 | . 1 . 1 . 4 . . . . 6 . . . 1 . . 11 3 7 . . 7 27 Move 6184 | 41 120 165 259 43 108 453 266 134 80 428 421 311 127 552 336 44 184 203 323 288 496 266 536 Hop 62 | . . 5 8 . . 11 3 2 . 6 . . . 5 2 1 . . 6 5 2 . 6 Pick Up 61 | 8 5 2 4 2 . 2 3 2 1 4 1 1 3 . 4 . 1 2 3 . 2 1 10 Fast Attach 17 | . . 3 . . . 2 . . . 3 . . 3 . 1 . 1 1 . 1 1 . 1 Attach 52 | 6 1 3 4 2 . 2 4 2 . 4 . . 2 1 5 . 1 1 3 . 1 2 8 Detach 2 | . . . . . . . . . 1 . . . . . . . . . 1 . . . . Swap 2 | . . . . 1 . . . . . . . . . . . . . . . . . . 1 Drop 13 | . . 3 1 . . 2 . . . 2 . . 1 . 1 . . . . 1 1 1 . Fire 31 | . 16 14 . . . . . . . . . . . . . . . . . . . 1 . Melee . | . . . . . . . . . . . . . . . . . . . . . . . . Ram . | . . . . . . . . . . . . . . . . . . . . . . . . Kick . | . . . . . . . . . . . . . . . . . . . . . . . . Crush . | . . . . . . . . . . . . . . . . . . . . . . . . Escape Stasis 32 | . . . . . . 17 . . . . . . . . . . . . . . . 15 . Rewire . | . . . . . . . . . . . . . . . . . . . . . . . . Trap . | . . . . . . . . . . . . . . . . . . . . . . . . Miscellaneous . | . . . . . . . . . . . . . . . . . . . . . . . . Route ------- -11/Scrapyard -10/Materials -9/Materials (discovered 2 exits: *Mat / [*Min]) -8/Materials (discovered 3 exits: *Fac x3) -7/Factory -7/Waste -7/Factory (discovered 5 exits: *Fac x4 / *Low) -6/Factory (discovered 4 exits: *Fac x4) -5/Factory -5/Waste -5/Factory -5/Upper Caves -5/Upper Caves -5/Zhirov -4/Proximity Caves -4/Factory -3/Research -3/Armory -3/Lab -2/Research (discovered 2 exits: *Qua x2) -2/Quarantine (discovered 2 exits: Acc / *Sec) -2/Section 7 -1/Access -1/Command History --------- Turn | Location | Event 25 | -11/Scrapyard | Discovered new exit (range 15) 55 | -11/Scrapyard | Entered Materials 238 | -10/Materials | Discovered new exit (range 11) 252 | -10/Materials | Entered another Materials area 252 | -9/Materials | Evolved 2 slots: Utility x2 318 | -9/Materials | Build established: Mutant 320 | -9/Materials | Discovered new exit (range 12) 411 | -9/Materials | Lost 4 parts (1p2n1w) 419 | -9/Materials | Discovered new exit (range 13) 431 | -9/Materials | Entered another Materials area 431 | -8/Materials | Evolved 2 slots: Power x1, Propulsion x1 483 | -8/Materials | Identified exit to Factory 538 | -8/Materials | Entered Factory 538 | -7/Factory | Evolved 2 slots: Utility x2 558 | -7/Factory | Sucked down chute 558 | -7/Factory | Entered Waste 559 | -7/Waste | Met a frightened Derelict 565 | -7/Waste | Spotted C-40 Crusher 566 | -7/Waste | Spotted C-40 Crusher 583 | -7/Waste | Spotted C-40 Crusher 584 | -7/Waste | Spotted C-40 Crusher 586 | -7/Waste | Spotted C-40 Crusher 588 | -7/Waste | Spotted C-40 Crusher 593 | -7/Waste | Discovered new exit (range 18) 599 | -7/Waste | Identified exit to Factory 599 | -7/Waste | Entered Factory 739 | -7/Factory | Identified exit to Factory 743 | -7/Factory | Discovered new exit (range 7) 745 | -7/Factory | Identified exit to Lower Caves 748 | -7/Factory | Lost 4 parts (1p3n) 781 | -7/Factory | Entered another Factory area 781 | -6/Factory | Evolved 2 slots: Utility x2 804 | -6/Factory | Identified exit to Factory 881 | -6/Factory | Entered another Factory area 881 | -5/Factory | Evolved 2 slots: Propulsion x1, Utility x1 932 | -5/Factory | Sucked down chute 932 | -5/Factory | Entered Waste 941 | -5/Waste | Spotted C-40 Crusher 943 | -5/Waste | Spotted C-40 Crusher 947 | -5/Waste | EMP discharged 953 | -5/Waste | Spotted C-40 Crusher 953 | -5/Waste | Spotted C-40 Crusher 955 | -5/Waste | Discovered new exit (range 18) 956 | -5/Waste | Found Prototype Reactor 957 | -5/Waste | Spotted C-40 Crusher 957 | -5/Waste | Crushed by Compactor (1 part destroyed, 1 dropped) 961 | -5/Waste | Identified exit to Factory 962 | -5/Waste | Entered Factory 1091 | -5/Factory | Spotted B-75 Beast 1111 | -5/Factory | Discovered new exit (range 15) 1117 | -5/Factory | Identified exit to Upper Caves 1117 | -5/Factory | Entered Upper Caves 1138 | -5/Upper Caves | Lost 5 parts (1p4n) 1230 | -5/Upper Caves | Spotted B-75 Beast 1252 | -5/Upper Caves | Encountered a Warlord checkpoint 1271 | -5/Upper Caves | Learned Factory terminal intel 1272 | -5/Upper Caves | Discovered new exit (range 4) 1274 | -5/Upper Caves | Identified exit to Upper Caves 1274 | -5/Upper Caves | Entered another Upper Caves area 1305 | -5/Upper Caves | Encountered a Warlord checkpoint 1375 | -5/Upper Caves | Build established: Hacker-Mutant 1381 | -5/Upper Caves | Discovered new exit (range 15) 1390 | -5/Upper Caves | Identified exit to Zhirov 1391 | -5/Upper Caves | Entered Zhirov 1391 | -5/Zhirov | Discovered new exit (range 3) 1398 | -5/Zhirov | Met Zhirov 1406 | -5/Zhirov | Learned location of Quarantine (-2) 1406 | -5/Zhirov | Learned location of Testing (-3) 1406 | -5/Zhirov | Learned location of Command (-1) 1409 | -5/Zhirov | Zhirov requested help retrieving the SGEMP Prototype 1416 | -5/Zhirov | Found Alien Artifact 1444 | -5/Zhirov | Identified exit to Proximity Caves 1444 | -5/Zhirov | Entered Proximity Caves 1481 | -4/Proximity Caves | Attracted the attention of an 0b10 outpost 1488 | -4/Proximity Caves | Learned location of Armory (-3) 1599 | -4/Proximity Caves | Core integrity fell below 50% 1618 | -4/Proximity Caves | Discovered new exit (range 6) 1620 | -4/Proximity Caves | Identified exit to Factory 1620 | -4/Proximity Caves | Entered Factory 1620 | -4/Factory | Evolved 2 slots: Propulsion x1, Utility x1 1621 | -4/Factory | Loaded intel: 20 terminal locations 1629 | -4/Factory | Lost 10 parts (2p4n4u) 1746 | -4/Factory | Discovered new exit (range 15) 1750 | -4/Factory | Identified exit to Research 1751 | -4/Factory | Entered Research 1751 | -3/Research | Evolved 2 slots: Power x1, Propulsion x1 1762 | -3/Research | Discovered new exit (range 12) 1766 | -3/Research | Identified exit to Armory 1767 | -3/Research | Entered Armory 1844 | -3/Armory | Identified Transdimensional Reconstructor 1844 | -3/Armory | Warped through subspace to slip node 1844 | -3/Armory | Discovered new exit (range 1) 1844 | -3/Armory | Identified exit to Lab 1845 | -3/Armory | Entered Lab 1845 | -3/Lab | Discovered new exit (range 9) 1848 | -3/Lab | Identified exit to Research 1850 | -3/Lab | Unable to decrypt terminal 1850 | -3/Lab | Opened the door to a hidden lab 1850 | -3/Lab | Detected by scanners 1851 | -3/Lab | Gained access to the hidden lab's interior 1853 | -3/Lab | Found Alien Artifact 1859 | -3/Lab | Confronted by A5 1865 | -3/Lab | Unable to decrypt terminal 1865 | -3/Lab | Identified Core Reset Matrix 1865 | -3/Lab | Used Core Reset Matrix 1866 | -3/Lab | Unable to decrypt terminal 1869 | -3/Lab | Sensed 3 artifacts in vicinity 1875 | -3/Lab | Discovered exit to Research (range 9) 1877 | -3/Lab | Unable to decrypt terminal 1883 | -3/Lab | Found Prototype Special Weapon 1910 | -3/Lab | Found Prototype Hackware 1910 | -3/Lab | Identified Deep Network Scanner 1920 | -3/Lab | Unable to decrypt terminal 1922 | -3/Lab | Entered Research 1922 | -2/Research | Evolved 2 slots: Propulsion x2 1923 | -2/Research | Identified Gui. Remote Datajack 1954 | -2/Research | Spotted B-90 Cyclops 2003 | -2/Research | Identified exit to Quarantine 2040 | -2/Research | Entered Quarantine 2041 | -2/Quarantine | Detected hypermatrix surge 2041 | -2/Quarantine | Sensed 4 artifacts in vicinity 2049 | -2/Quarantine | Identified exit to Access 2115 | -2/Quarantine | Spotted Fortress 2127 | -2/Quarantine | Lost 4 parts (4n) 2146 | -2/Quarantine | Discovered new exit (range 5) 2147 | -2/Quarantine | Identified exit to Section 7 2148 | -2/Quarantine | Entered Section 7 2149 | -2/Section 7 | Sensed 17 artifacts in vicinity 2192 | -2/Section 7 | Spotted B-90 Cyclops 2199 | -2/Section 7 | Discovered exit to Access (range 16) 2221 | -2/Section 7 | Spotted Executioner 2221 | -2/Section 7 | Spotted Executioner 2269 | -2/Section 7 | Spotted Executioner 2270 | -2/Section 7 | Spotted Executioner 2275 | -2/Section 7 | Spotted Striker 2275 | -2/Section 7 | Spotted Striker 2308 | -2/Section 7 | Found Terrabomb 2310 | -2/Section 7 | Found Terrabomb 2366 | -2/Section 7 | Core integrity fell below 50% 2366 | -2/Section 7 | Entered Access 2366 | -1/Access | Evolved 2 slots: Propulsion x2 2390 | -1/Access | Lost 3 parts (3u) 2449 | -1/Access | Core integrity fell below 50% 2461 | -1/Access | Emitted hypermatrix ping 2464 | -1/Access | Assembled emerged from beneath the floor 2466 | -1/Access | Assembled emerged from beneath the floor 2492 | -1/Access | Assembled emerged from beneath the floor 2512 | -1/Access | Used Terrabomb 2512 | -1/Access | Discovered new exit (range 7) 2512 | -1/Access | Spotted B-99 Colossus 2514 | -1/Access | Spotted B-99 Colossus 2516 | -1/Access | Core integrity fell below 20% 2516 | -1/Access | Identified exit to Command 2527 | -1/Access | Entered Command 2527 | -1/Command | Accompanied by 8 allies 2528 | -1/Command | Emitted hypermatrix ping 2533 | -1/Command | Assembled emerged from beneath the floor 2669 | -1/Command | Assembled emerged from beneath the floor 2736 | -1/Command | Spotted M Guard 2736 | -1/Command | Spotted M Guard 2736 | -1/Command | Spotted Combat Programmer 2736 | -1/Command | Destroyed by M Guard with Hellfire Missile Launcher Last Messages --------------- Slug penetrates Wall. Xenon Bombardment Thruster destroyed. Connecting with Terminal... >>Trojan(Assimilate) Trojan loaded successfully. Testing... System interface override in place. Slug penetrates S-43 Plague. Xenon Bombardment Thruster destroyed. Penetrated by Slug. as-06711 destroyed. Acquired Xenon Bombardment Thruster. S-43 Plague shuts down. Slug penetrates R-10 Processor. R-10 Processor suffers critical hit. R-10 Processor destroyed. as-35692 sneak attacks. S-43 Plague destroyed. Slug penetrates as-44564. Slug penetrates as-45639. Map ----- +----------------------------------------------------+ | ?????????????????????????????????????????????????? | | ?????????????????????????????????????????????????? | | ?????????????????????????????????????????????????? | | ?????????????????????????????????????????????????? | | ?????????????????????????????????????????????????? | | ?????????????????????????????????????????????????? | | ?????????????????????????????????????????????????? | | ?????????????????????????????????????????????????? | | ?????????????????????????????????????????????????? | | ?????????????????????????????????????????????????? | | ?????????????????????????????????????????????????? | | ?????????????????????????????????????????????????? | | ?????????????????????????????????????????????????? | | ?????????????????????????????????????????????????? | | ?????????????????????????????????????????????????? | | ?????????????????????????????????????????????????? | | ?????????????????????????????????????????????????? | | ?????????????????????????????????????????????????? | | ?????????????????????????????????????????????????? | | ?????????????????????????????????????????????????? | | ?????????????????????####??#####?#####???????????? | | ???????????????# ????# ??# #?# #???????????? | | ???????????+#### W ### W ### W ### W ##########+## | | ?????????? + | | ??????????Y + | | ?????????? @ + | | ??????????Y + | | ?????????? k + | | ???????????p ### ### W ### W ### W ######## | | ???????????????# ????# ??# #?# #??????# | | ?????????????????????####??#####?#####??????# | | ????????????????????????????????????????????# | | ????????????????????????????????????????????# | | ????????????????????????????????????????????###### | | ?????????????????????????????????????????????????# | | ?????????????????????????????????????????????????# | | ?????????????????????????????????????????????????# | | ???????????????????????????????????########??????# | | ???????????????????????????????????# #??????# | | ???????????????????????????????????# #??????# | | ???????????????????????????????????# #??????+ | | ???????????????????????????????????# #??????# | | ???????????????????????????????????# #??????# | | ???????????????????????????????????# ######?# | | ???????????????????????????????????# # #?# | | ???????????????????????????????????# + #?# | | ???????????????????????????????????# # #?# | | ???????????????????????????????????# # #?# | | ???????????????????????????????????# ## #### | | ???????????????????????????????????# ## # % | +----------------------------------------------------+ Best States ------------- Heat Dissipation 52 Energy Generation 45 Energy Capacity 440 Matter Stores 300 Matter Capacity 300 Sight Range 18 Terrain Scan Density 210 Evasion (%) 65 Offensive Hacking 40 Defensive Hacking 24 Item Schematics ----------------- None Robot Schematics ------------------ None Fabricated ------------ Nothing Alien Tech Used ----------------- Transdimensional Reconstructor Core Reset Matrix Terrabomb Achievements -------------- Anyone Home? Below Challenges ------------ None Game ------ Seed PropulsionWarpExoskeleton Manual? 0 Play Time 01:25:52 Cumulative 121.0 hours Start 2021.05.16 @ 19:01:41 End 2021.05.16 @ 20:45:24 Sessions 1 Manual Loads 0 Difficulty Rogue Special Mode None Game No. 195 Rogue 193 Adventurer 2 Explorer 0 Win Type - Total 1 Types 1/0/0/0/0/0/0/0/0 Lore% 57 Gallery% 53 Achievement% 45 Wizard Run 0 Options --------- ASCII 0 Keyboard 0 Movement Mouse Keybinds 0 Fullscreen 1 Font 18/SmallcapsGlow Map View 76x50 Tactical HUD 0 Map Filters NONE Filters NONE Steam 1 RUN: 386eb138-7929-4717-a23c-ddd906478b22